fUSD/lending_fUSD_20251110
["ID","MTS","AMOUNT","RATE_DAILY","PERIOD"]
[393545059,1762788728152,151.0,0.00017989,2]
[393545060,1762788728768,151.0,0.00017989,2]
[393545061,1762788729624,151.0,0.00017989,2]
[393545062,1762788730052,400.31009864,0.00017989,2]
[393545063,1762788730122,151.0,0.00017989,2]
[393545064,1762788730743,209.92031501,0.00017989,2]
[393545065,1762788730985,151.0,0.00017989,2]
[393545066,1762788731197,300.0,0.00017999,2]
[393545067,1762788731764,151.0,0.00017989,2]
[393545068,1762788732438,151.0,0.00017989,2]
[393545069,1762788733086,151.0,0.00017989,2]
[393545070,1762788733788,151.0,0.00017989,2]
[393545071,1762788734073,200.0,0.00017989,2]
[393545072,1762788734532,151.0,0.00017989,2]
[393545073,1762788735154,151.0,0.00017989,2]
[393545074,1762788735951,151.0,0.00017989,2]
[393545075,1762788736554,151.0,0.00017989,2]
[393545076,1762788737383,200.0,0.00017989,2]
[393545077,1762788737418,151.0,0.00017989,2]
[393545078,1762788738087,151.0,0.00017989,2]
[393545079,1762788742422,500.0,0.00017999,2]
[393545080,1762788742702,500.0,0.00017999,2]
[393545081,1762788742914,500.0,0.00017999,2]
[393545082,1762788743162,231.24993958,0.00017999,2]
[393545083,1762788747992,200.0,0.00017989,2]
[393545084,1762788751491,3027.25151721,0.000179,2]
[393545085,1762788752680,179.98846314,0.000179,2]
[393545086,1762788755645,500.0,0.00017999,2]
[393545087,1762788755866,500.0,0.00017999,2]
[393545088,1762788756117,500.0,0.00017999,2]
[393545089,1762788756366,500.0,0.00017999,2]
[393545090,1762788756595,500.0,0.00017999,2]
[393545091,1762788756834,451.52008007,0.00017999,2]
[393545092,1762788756860,48.47991993,0.00017999,2]
[393545093,1762788757071,500.0,0.00017999,2]
[393545094,1762788757316,500.0,0.00017999,2]
[393545095,1762788757532,422.11909048,0.00017999,2]
[393545096,1762788758311,178.45,0.00015892,2]
[393545097,1762788764022,-424000.0,0.00018,2]
[393545098,1762788764143,965.0,0.00017999,2]
[393545099,1762788779671,1531.70828,0.0001791,2]
[393545100,1762788783574,160.9951893,0.000179,2]
[393545101,1762788789369,151.0,0.00017989,2]
[393545102,1762788789931,151.0,0.00017989,2]
[393545103,1762788790538,151.0,0.00017989,2]
[393545104,1762788790843,300.0,0.00017999,2]
[393545105,1762788791169,151.0,0.00017989,2]
[393545106,1762788791723,1494.23967867,0.00017999,5]
[393545107,1762788791945,151.0,0.00017989,2]
[393545108,1762788803003,500.0,0.00017999,2]
[393545109,1762788803042,500.0,0.00017999,2]
[393545110,1762788803104,500.0,0.00017999,2]
[393545111,1762788803160,615.96421941,0.00017999,2]
[393545112,1762788807197,151.0,0.00017997,2]
[393545113,1762788807367,502.70465215,0.000179,2]
[393545114,1762788815606,190.09237201,0.00017999,2]
[393545115,1762788817175,499.99999999,0.00017999,2]
[393545116,1762788828243,500.0,0.00017999,2]
[393545117,1762788828283,500.0,0.00017999,2]
[393545118,1762788828316,500.0,0.00017999,2]
[393545119,1762788828361,300.0,0.00017999,2]
[393545120,1762788839886,500.0,0.00017999,2]
[393545121,1762788853935,254.0711297,0.000179,2]
[393545123,1762788874068,270.75397248,0.00017999,2]
[393545124,1762788881828,2277.1159785,0.000179,2]
[393545125,1762788884458,524.0,0.0002609,120]
[393545126,1762788884927,524.0,0.0002608,120]
[393545127,1762788885380,524.0,0.0002607,120]
[393545128,1762788891476,625.21960734,0.000179,2]
[393545129,1762788901744,300.0,0.00017999,2]
[393545130,1762788901816,513.08806842,0.00017999,2]
[393545131,1762788901841,686.91193158,0.00017999,2]
[393545132,1762788902032,300.0,0.00017999,2]
[393545133,1762788912075,160.0,0.00026602,120]
[393545134,1762788913265,9013.09806842,0.000179,2]
[393545135,1762788913303,10000.01,0.000179,2]
[393545136,1762788913331,10000.01,0.000179,2]
[393545137,1762788913357,7778.60622339,0.000179,2]
[393545138,1762788913429,160.0,0.00027932,120]
[393545139,1762788914672,160.0,0.00029328,120]
[393545140,1762788924210,445.16036995,0.00030136,120]
[393545141,1762788985348,169.38075314,0.000179,2]
[393545142,1762789012141,1518.077319,0.000179,2]
[393545143,1762789014532,641.29723553,0.00017999,2]
[393545144,1762789039239,151.0,0.00017989,2]
[393545145,1762789039835,151.0,0.00017989,2]
[393545146,1762789040590,151.0,0.00017989,2]
[393545147,1762789041265,151.0,0.00017989,2]
[393545148,1762789041944,151.0,0.00017989,2]
[393545149,1762789042550,151.0,0.00017989,2]
[393545150,1762789043185,151.0,0.00017989,2]
[393545151,1762789043804,151.0,0.00017989,2]
[393545152,1762789045655,151.0,0.00017989,2]
[393545153,1762789046156,151.0,0.00017989,2]
[393545154,1762789046792,151.0,0.00017989,2]
[393545155,1762789049280,200.0,0.00017989,2]
[393545156,1762789063833,200.0,0.00017989,2]
[393545157,1762789069112,200.0,0.00017989,2]
[393545158,1762789087688,439.86657064,0.000179,2]
[393545159,1762789115597,169.38075312,0.000179,2]
[393545160,1762789120079,150.0,0.00027397,120]
[393545161,1762789120309,226.66493069,0.00027534,120]
[393545162,1762789120459,4801.00736857,0.000179,2]
[393545163,1762789120485,3473.22015295,0.000179,2]
[393545164,1762789140920,500.0,0.00017999,2]
[393545165,1762789141182,500.0,0.00017999,2]
[393545166,1762789141439,500.0,0.00017999,2]
[393545167,1762789141697,500.0,0.00017999,2]
[393545168,1762789142445,1012.051546,0.000179,2]
[393545169,1762789151842,300.0,0.00017999,2]
[393545170,1762789153805,231.76,0.00017999,2]
[393545171,1762789153923,500.0,0.00017999,2]
[393545172,1762789154170,525.61822093,0.00017999,2]
[393545173,1762789162610,500.0,0.00017999,2]
[393545174,1762789162855,500.0,0.00017999,2]
[393545175,1762789163094,500.0,0.00017999,2]
[393545176,1762789163340,500.0,0.00017999,2]
[393545177,1762789163584,500.0,0.00017999,2]
[393545178,1762789163844,500.0,0.00017999,2]
[393545179,1762789164096,500.0,0.00017999,2]
[393545180,1762789164337,500.0,0.00017999,2]
[393545181,1762789164586,511.03757913,0.00017999,2]
[393545182,1762789171315,466.54405779,0.00027397,120]
[393545183,1762789184673,1206.48648621,0.00017982,2]
[393545184,1762789202361,300.0,0.00017999,2]
[393545185,1762789204728,913.05616773,0.00017999,2]
[393545186,1762789204755,286.94383227,0.00017999,2]
[393545187,1762789205807,250.44742454,0.00017999,2]
[393545188,1762789208694,316.21,0.0001799,2]
[393545189,1762789208784,162.0,0.00027776,120]
[393545190,1762789208900,316.21,0.0001799,2]
[393545191,1762789209121,316.21,0.0001799,2]
[393545192,1762789209328,316.21,0.0001799,2]
[393545193,1762789209560,316.21,0.0001799,2]
[393545194,1762789210063,162.0,0.00029165,120]
[393545195,1762789210836,7881.56874319,0.0001799,2]
[393545196,1762789210865,9106.98125681,0.0001799,2]
[393545197,1762789210901,352.09040314,0.0001799,2]
[393545198,1762789210940,352.09040314,0.0001799,2]
[393545199,1762789211010,188.84793691,0.0001799,2]
[393545200,1762789211034,163.24246623,0.0001799,2]
[393545201,1762789211063,9836.76753377,0.0001799,2]
[393545202,1762789211087,7151.78246623,0.0001799,2]
[393545203,1762789211287,300.0,0.00017999,2]
[393545204,1762789217573,1455.80938595,0.000179,2]
[393545205,1762789235858,169.38075312,0.000179,2]
[393545206,1762789272719,674.70103068,0.000179,2]
[393545207,1762789293298,248.33636402,0.0001764,2]
[393545208,1762789293323,606.34563598,0.0001764,2]
[393545209,1762789316163,152.39998662,0.00017982,2]
[393545210,1762789326963,200.0,0.00017989,2]
[393545211,1762789332319,200.0,0.00017989,2]
[393545212,1762789342550,151.0,0.00022,30]
[393545213,1762789348783,151.0,0.00017989,2]
[393545214,1762789349058,1539.90727193,0.00017794,2]
[393545215,1762789349472,151.0,0.00017989,2]
[393545216,1762789349874,216.21978476,0.00017596,2]
[393545217,1762789350144,151.0,0.00017989,2]
[393545218,1762789351238,151.0,0.00017989,2]
[393545219,1762789351867,151.0,0.00017989,2]
[393545220,1762789352780,151.0,0.00017989,2]
[393545221,1762789353387,151.0,0.00017989,2]
[393545222,1762789354040,151.0,0.00017989,2]
[393545223,1762789354754,151.0,0.00017989,2]
[393545224,1762789355422,151.0,0.00017989,2]
[393545225,1762789356261,151.0,0.00017989,2]
[393545226,1762789364381,200.0,0.00017989,2]
[393545227,1762789368068,384.88324931,0.000179,2]
[393545228,1762789404081,449.80068712,0.000179,2]
[393545229,1762789405654,151.0,0.00017997,2]
[393545230,1762789414819,4238.45338428,0.00017999,2]
[393545231,1762789414847,10000.01,0.00017999,2]
[393545232,1762789414877,10000.01,0.00017999,2]
[393545233,1762789414911,10000.01,0.00017999,2]
[393545234,1762789414942,10000.01,0.00017999,2]
[393545235,1762789443353,-7274.90228627,0.00017999,2]
[393545236,1762789443368,-10000.01,0.00017999,2]
[393545237,1762789444981,-10000.01,0.00017999,2]
[393545238,1762789445204,-10000.01,0.00017999,2]
[393545239,1762789445452,-10000.01,0.00017999,2]
[393545240,1762789445478,-10000.01,0.00017999,2]
[393545241,1762789445606,-10000.01,0.00017999,2]
[393545242,1762789445726,-10000.01,0.00017999,2]
[393545243,1762789445852,-10000.01,0.00017999,2]
[393545244,1762789445994,-10000.01,0.00017999,2]
[393545246,1762789456902,-10000.01,0.00017999,2]
[393545247,1762789457037,-10000.01,0.00017999,2]
[393545253,1762789511315,-250.0,0.00017,2]
[393545254,1762789511352,-3444.241406,0.00017907,2]
[393545255,1762789511389,-500.0,0.00017973,2]
[393545256,1762789511424,-497.07074524,0.00017973,2]
[393545257,1762789511458,-300.0,0.00017996,2]
[393545258,1762789511575,-300.0,0.00017997,2]
[393545259,1762789511609,-300.0,0.00017997,2]
[393545260,1762789511646,-300.0,0.00017997,2]
[393545261,1762789511683,-1200.0,0.00017997,2]
[393545262,1762789511722,-300.0,0.00017997,2]
[393545263,1762789511759,-500.0,0.00017998,2]
[393545264,1762789511800,-200.0,0.00017998,2]
[393545265,1762789511836,-440.17538537,0.00017998,2]
[393545266,1762789511872,-500.0,0.00017998,2]
[393545267,1762789511907,-500.0,0.00017998,2]
[393545268,1762789511952,-419.65922926,0.00017998,2]
[393545269,1762789512064,-80.34077074,0.00017998,2]
[393545270,1762789512100,-612.81656448,0.00017998,2]
[393545271,1762789512144,-500.0,0.00017998,2]
[393545272,1762789512178,-296.36423217,0.00017998,2]
[393545273,1762789512220,-500.0,0.00017998,2]
[393545274,1762789512256,-500.0,0.00017998,2]
[393545275,1762789512296,-500.0,0.00017998,2]
[393545276,1762789512329,-500.0,0.00017998,2]
[393545277,1762789512368,-500.0,0.00017998,2]
[393545278,1762789512408,-500.0,0.00017998,2]
[393545279,1762789512441,-450.41338572,0.00017998,2]
[393545280,1762789513163,-120.14009378,0.00017998,2]
[393545281,1762789513173,-97.72646826,0.00017998,2]
[393545282,1762789513260,-279.76522667,0.00017998,2]
[393545283,1762789514390,-501.45086353,0.00017973,2]
[393545284,1762789514433,-122.50830507,0.00017998,2]
[393545285,1762789514476,-500.0,0.00017998,2]
[393545286,1762789514521,-500.0,0.00017998,2]
[393545287,1762789514565,-500.0,0.00017998,2]
[393545288,1762789514608,-500.0,0.00017998,2]
[393545289,1762789514651,-500.0,0.00017998,2]
[393545290,1762789514697,-500.0,0.00017998,2]
[393545291,1762789514742,-500.0,0.00017998,2]
[393545292,1762789514785,-500.0,0.00017998,2]
[393545293,1762789514827,-252.0916628,0.00017998,2]
[393545294,1762789515100,-247.9083372,0.00017998,2]
[393545295,1762789535430,-300.699974,0.000179,2]
[393545296,1762789535461,-1572.38789807,0.000179,2]
[393545297,1762789535492,-500.85171979,0.00017973,2]
[393545298,1762789535523,-500.0,0.00017973,2]
[393545299,1762789535554,-500.0,0.00017973,2]
[393545300,1762789535585,-500.0,0.00017973,2]
[393545301,1762789535621,-500.0,0.00017998,2]
[393545302,1762789535767,-500.0,0.00017998,2]
[393545303,1762789535903,-500.0,0.00017998,2]
[393545304,1762789535940,-500.0,0.00017998,2]
[393545305,1762789535979,-500.0,0.00017998,2]
[393545306,1762789536016,-500.0,0.00017998,2]
[393545307,1762789536056,-500.0,0.00017998,2]
[393545308,1762789536091,-500.0,0.00017998,2]
[393545309,1762789536126,-500.0,0.00017998,2]
[393545310,1762789536159,-500.0,0.00017998,2]
[393545311,1762789536194,-561.47219498,0.00017998,2]
[393545312,1762789536232,-377.06561004,0.00017998,2]
[393545313,1762789536357,-122.93438996,0.00017998,2]
[393545314,1762789536391,-500.0,0.00017998,2]
[393545315,1762789536427,-500.0,0.00017998,2]
[393545316,1762789536461,-500.0,0.00017998,2]
[393545317,1762789536498,-500.0,0.00017998,2]
[393545318,1762789536532,-500.0,0.00017998,2]
[393545319,1762789536569,-500.0,0.00017998,2]
[393545320,1762789536605,-500.0,0.00017998,2]
[393545321,1762789536639,-500.0,0.00017998,2]
[393545322,1762789536674,-153.83210947,0.00017998,2]
[393545323,1762789536711,-500.0,0.00017998,2]
[393545324,1762789536798,-500.0,0.00017998,2]
[393545325,1762789536834,-500.0,0.00017998,2]
[393545326,1762789536870,-500.0,0.00017998,2]
[393545327,1762789538150,-321.54220738,0.00017999,2]
[393545328,1762789538170,-500.0,0.00017999,2]
[393545329,1762789538185,-7000.01,0.00017999,2]
[393545330,1762789538207,-10000.01,0.00017999,2]
[393545331,1762789538253,-10000.01,0.00017999,2]
[393545332,1762789538300,-10000.01,0.00017999,2]
[393545333,1762789538348,-10000.01,0.00017999,2]
[393545334,1762789538370,-10000.01,0.00017999,2]
[393545335,1762789538915,-181.42431488,0.00017999,2]
[393545336,1762789544471,-10000.01,0.000179,2]
[393545337,1762789544597,-275.03444157,0.000179,2]
[393545338,1762789544635,-9449.94111686,0.00017999,2]
[393545339,1762789544709,-10000.01,0.00017999,2]
[393545341,1762789574717,-224.1004729,0.000179,2]
[393545342,1762789574749,-250.0,0.00017905,2]
[393545343,1762789574783,-200.0,0.00017909,2]
[393545344,1762789574813,-500.0,0.00017973,2]
[393545345,1762789574849,-500.0,0.00017998,2]
[393545346,1762789574886,-500.0,0.00017998,2]
[393545347,1762789574927,-500.0,0.00017998,2]
[393545348,1762789574967,-500.0,0.00017998,2]
[393545349,1762789575012,-500.0,0.00017998,2]
[393545350,1762789575050,-500.0,0.00017998,2]
[393545351,1762789575090,-500.0,0.00017998,2]
[393545352,1762789575128,-151.8090542,0.00017998,2]
[393545353,1762789575279,-348.1909458,0.00017998,2]
[393545354,1762789575319,-500.0,0.00017998,2]
[393545355,1762789575358,-500.0,0.00017998,2]
[393545356,1762789575396,-500.0,0.00017998,2]
[393545357,1762789575434,-538.24663652,0.00017998,2]
[393545358,1762789575477,-500.0,0.00017998,2]
[393545359,1762789575516,-500.0,0.00017998,2]
[393545360,1762789575556,-500.0,0.00017998,2]
[393545361,1762789575595,-500.0,0.00017998,2]
[393545362,1762789575633,-500.0,0.00017998,2]
[393545363,1762789575767,-500.0,0.00017998,2]
[393545364,1762789575807,-500.0,0.00017998,2]
[393545365,1762789575847,-500.0,0.00017998,2]
[393545366,1762789576391,-113.57241768,0.00017973,2]
[393545367,1762789576407,-386.42758232,0.00017973,2]
[393545368,1762789576418,-113.57241768,0.00017999,2]
[393545369,1762789576438,-7000.01,0.00017999,2]
[393545370,1762789576470,-231.87229868,0.00017999,2]
[393545371,1762789577764,-500.0,0.00017973,2]
[393545372,1762789577802,-9000.01,0.00017999,2]
[393545373,1762789577918,-1071.77723097,0.00017999,2]
[393545374,1762789577949,-500.0,0.00017999,2]
[393545375,1762789577981,-500.0,0.00017999,2]
[393545376,1762789578018,-454.03498569,0.00017999,2]
[393545377,1762789578049,-300.0,0.00017999,2]
[393545378,1762789579055,-212.26666186,0.00017999,2]
[393545379,1762789579079,-26.37248647,0.00017999,2]
[393545380,1762789581381,500.0,0.00017973,2]
[393545381,1762789581930,-234.97936283,0.00017999,2]
[393545382,1762789584890,-157.37,0.00017999,2]
[393545383,1762789587559,2525.425424,0.00017908,2]
[393545384,1762789588213,-39.97472446,0.00017999,2]
[393545385,1762789588237,-120.22060888,0.00017999,2]
[393545386,1762789605356,367.0,0.0002608,120]
[393545387,1762789605701,367.0,0.0002607,120]
[393545388,1762789606143,367.0,0.0002606,120]
[393545389,1762789608335,5000.0,0.0003,120]
[393545390,1762789617170,-271.36000163,0.00017999,2]
[393545391,1762789617193,-4.83669102,0.00017999,2]
[393545392,1762789621458,-193.89643279,0.00017999,2]
[393545393,1762789621480,-22.85509498,0.00017999,2]
[393545394,1762789623858,-181.55994819,0.00017999,2]
[393545395,1762789626153,159.85011079,0.000179,2]
[393545397,1762789629878,-25.64645455,0.00017999,2]
[393545398,1762789629907,-125.47862367,0.00017999,2]
[393545399,1762789631873,300.0,0.00017999,2]
[393545400,1762789634653,-152.57216897,0.00017999,2]
[393545401,1762789638232,-221.94920736,0.00017999,2]
[393545402,1762789638262,-35.70860443,0.00017999,2]
[393545403,1762789640649,200.0,0.00017989,2]
[393545404,1762789641957,-330.40070945,0.00017999,2]
[393545405,1762789645617,200.0,0.00017989,2]
[393545406,1762789645953,200.0,0.00017989,2]
[393545407,1762789647072,-133.89068612,0.00017999,2]
[393545408,1762789647101,-149.35778611,0.00017999,2]
[393545409,1762789647135,151.0,0.00017989,2]
[393545410,1762789647767,112.11003189,0.00017989,2]
[393545411,1762789647795,38.88996811,0.00017989,2]
[393545412,1762789648437,151.0,0.00017989,2]
[393545413,1762789649067,151.0,0.00017989,2]
[393545414,1762789649682,151.0,0.00017989,2]
[393545415,1762789649857,438.74623938,0.000179,2]
[393545416,1762789650339,151.0,0.00017989,2]
[393545417,1762789650447,-344.50907994,0.00017999,2]
[393545418,1762789651185,151.0,0.00017989,2]
[393545419,1762789651814,151.0,0.00017989,2]
[393545420,1762789652459,151.0,0.00017989,2]
[393545421,1762789653241,151.0,0.00017989,2]
[393545422,1762789654110,151.0,0.00017989,2]
[393545423,1762789654618,-6.13313395,0.00017999,2]
[393545424,1762789654646,-282.11181154,0.00017999,2]
[393545425,1762789658998,-217.88818846,0.00017999,2]
[393545426,1762789659028,-8.23004303,0.00017999,2]
[393545427,1762789664883,1048.25859872,0.000179,2]
[393545428,1762789665682,-282.47665512,0.00017999,2]
[393545429,1762789667742,-167.06800272,0.00017999,2]
[393545430,1762789671660,509.3844798,0.000179,2]
[393545431,1762789671708,-42.22529913,0.00017999,2]
[393545432,1762789671908,-146.52177592,0.00017999,2]
[393545433,1762789673337,314.04628242,0.00017999,2]
[393545434,1762789673488,314.04628242,0.00017999,2]
[393545435,1762789673636,-353.47822408,0.00017999,2]
[393545436,1762789673669,-500.0,0.00017999,2]
[393545437,1762789673699,-500.0,0.00017999,2]
[393545438,1762789673728,-177.41316928,0.00017999,2]
[393545439,1762789673756,-469.10860664,0.00017999,2]
[393545440,1762789673790,314.04628242,0.00017999,2]
[393545441,1762789674201,-174.80350201,0.00017999,2]
[393545442,1762789674226,-8.10668607,0.00017999,2]
[393545443,1762789677164,-143.01839215,0.00017999,2]
[393545444,1762789677193,-410.22998076,0.00017999,2]
[393545445,1762789677215,-330.40070945,0.00017999,2]
[393545446,1762789677243,-627.75755217,0.00017999,2]
[393545447,1762789677266,-177.00519718,0.00017999,2]
[393545448,1762789677288,-250.0,0.00018,2]
[393545449,1762789677312,-61.58816829,0.00018,2]
[393545450,1762789678716,-2000.0,0.00018,2]
[393545451,1762789680413,-358.83500915,0.00017999,2]
[393545452,1762789680438,-1641.16499085,0.00018,2]
[393545453,1762789684353,300.0,0.00017999,2]
[393545454,1762789691211,-288.51297896,0.00017999,2]
[393545455,1762789691243,300.0,0.00017999,2]
[393545456,1762789698224,-155.04722104,0.00017999,2]
[393545457,1762789698590,187.4013829,0.000179,2]
[393545458,1762789707972,-56.17786826,0.00017999,2]
[393545459,1762789707996,-112.89213174,0.00017999,2]
[393545460,1762789721182,-137.10786826,0.00017999,2]
[393545461,1762789721211,-13.89213174,0.00017999,2]
[393545462,1762789739000,500.0,0.00017999,2]
[393545463,1762789740808,296.54,0.00030137,120]
[393545464,1762789747404,245.49535761,0.00030137,120]
[393545465,1762789748411,201.79529724,0.000179,2]
[393545466,1762789751667,300.0,0.00017999,2]
[393545467,1762789771326,500.0,0.00017999,2]
[393545468,1762789771567,500.0,0.00017999,2]
[393545469,1762789771806,500.0,0.00017999,2]
[393545470,1762789772059,500.0,0.00017999,2]
[393545471,1762789772347,500.0,0.00017999,2]
[393545472,1762789772582,499.0,0.00017999,2]
[393545473,1762789778016,-170.19850543,0.00017999,2]
[393545474,1762789778055,-151.0,0.00017999,2]
[393545475,1762789783314,438.94172136,0.00017999,2]
[393545476,1762789790392,181.91965179,0.00017982,2]
[393545477,1762789795429,698.8390658,0.000179,2]
[393545478,1762789802631,1200.0,0.00017999,2]
[393545479,1762789802662,300.0,0.00017999,2]
[393545480,1762789811577,359.23664888,0.0001799,2]
[393545481,1762789811628,359.23664888,0.0001799,2]
[393545482,1762789811673,359.23664888,0.0001799,2]
[393545484,1762789831876,-195.0,0.00017999,2]
[393545485,1762789831888,-300.0,0.00018,2]
[393545486,1762789831900,-2041.62767754,0.00018,2]
[393545492,1762789832356,-2023.67427547,0.00018,2]
[393545496,1762789832375,-19439.5977338,0.00018,2]
[393545498,1762789832386,-38397.75504983,0.00018,2]
[393545501,1762789832397,-435.11521569,0.00018,2]
[393545639,1762789837704,-2688.47927342,0.00018,2]
[393545642,1762789837760,-2596651.53719214,0.00018,2]
[393545643,1762789837825,-423.89753492,0.00018,2]
[393545644,1762789838504,-113.26714003,0.00018,2]
[393545645,1762789838516,-363.42171645,0.00018,2]
[393545646,1762789838540,-21556.20770645,0.00018,2]
[393545647,1762789838554,-199456.05336449,0.00018,2]
[393545683,1762789839836,-402.59570384,0.00018,2]
[393545684,1762789839926,-635.97087212,0.00018,2]
[393545692,1762789840822,-1.7e-07,0.00018,2]
[393545693,1762789840835,-6811255.97255969,0.00018,2]
[393545702,1762789846155,-247.70554295,0.00018,2]
[393545703,1762789846199,-2949.99999918,0.00018,2]
[393545705,1762789846369,-274.33169564,0.00018,2]
[393545707,1762789846380,-4713.10653101,0.00018,2]
[393545709,1762789846390,-161.01,0.00018,2]
[393545711,1762789846399,-235.0,0.00018,2]
[393545712,1762789846409,-195.0,0.00018004,2]
[393545713,1762789846418,-1539.90727194,0.00018219,2]
[393545714,1762789846428,-216.21978476,0.00018276,2]
[393545715,1762789846438,-200.0,0.00018537,2]
[393545716,1762789846447,-200.0,0.00018537,2]
[393545717,1762789846456,-999.0,0.00018568,3]
[393545718,1762789846465,-216.6,0.00018604,2]
[393545719,1762789846476,-335.75,0.000187,2]
[393545720,1762789846485,-783.86,0.000188,2]
[393545721,1762789846495,-150.15,0.000188,2]
[393545722,1762789846503,-150.15,0.000188,2]
[393545723,1762789846513,-150.15,0.000188,2]
[393545724,1762789846522,-150.15,0.000188,2]
[393545725,1762789846531,-150.15,0.000188,2]
[393545726,1762789846540,-150.15,0.000188,2]
[393545727,1762789846549,-150.15,0.000188,2]
[393545728,1762789846559,-150.15,0.000188,2]
[393545729,1762789846569,-150.15,0.000188,2]
[393545730,1762789846578,-150.15,0.000188,2]
[393545731,1762789846587,-150.15,0.000188,2]
[393545732,1762789846596,-150.15,0.000188,2]
[393545733,1762789846605,-150.15,0.000188,2]
[393545734,1762789846615,-150.15,0.000188,2]
[393545735,1762789846624,-150.15,0.000188,2]
[393545736,1762789846633,-150.15,0.000188,2]
[393545738,1762789846643,-150.15,0.000188,2]
[393545740,1762789846652,-150.15,0.000188,2]
[393545741,1762789846662,-150.15,0.000188,2]
[393545742,1762789846672,-150.15,0.000188,2]
[393545743,1762789846681,-150.15,0.000188,2]
[393545744,1762789846690,-150.15,0.000188,2]
[393545745,1762789846700,-150.15,0.000188,2]
[393545746,1762789846710,-150.15,0.000188,2]
[393545747,1762789846720,-150.15,0.000188,2]
[393545748,1762789846729,-150.15,0.000188,2]
[393545749,1762789846739,-150.15,0.000188,2]
[393545750,1762789846748,-150.15,0.000188,2]
[393545751,1762789846758,-150.15,0.000188,2]
[393545752,1762789846767,-150.15,0.000188,2]
[393545753,1762789846777,-150.15,0.000188,2]
[393545754,1762789846787,-150.15,0.000188,2]
[393545755,1762789846797,-150.15,0.000188,2]
[393545756,1762789846807,-150.15,0.000188,2]
[393545757,1762789846817,-150.15,0.000188,2]
[393545758,1762789846827,-150.15,0.000188,2]
[393545759,1762789846837,-150.15,0.000188,2]
[393545760,1762789846847,-150.15,0.000188,2]
[393545766,1762789846967,-150.15,0.000188,2]
[393545768,1762789846981,-150.15,0.000188,2]
[393545770,1762789846992,-150.15,0.000188,2]
[393545772,1762789847002,-150.15,0.000188,2]
[393545774,1762789847011,-150.15,0.000188,2]
[393545776,1762789847021,-150.15,0.000188,2]
[393545778,1762789847031,-150.15,0.000188,2]
[393545780,1762789847041,-150.15,0.000188,2]
[393545782,1762789847050,-150.15,0.000188,2]
[393545784,1762789847060,-150.15,0.000188,2]
[393545786,1762789847073,-150.15,0.000188,2]
[393545788,1762789847083,-150.15,0.000188,2]
[393545790,1762789847092,-150.15,0.000188,2]
[393545792,1762789847102,-150.15,0.000188,2]